{"text_format":"3","workbook":"xlsx","n_sheets":1,"sheets":["Протокол ШЭ ВОШ по предмету"],"not_rendered":{"external_links":1,"defined_names":1},"read":"whole","date_system":"1900"}

{"sheet":"Протокол ШЭ ВОШ по предмету","index":0,"n_rows":54,"n_cols":15,"rows_kept":54}
["№","Фамилия","Имя","Отчество","Дата рождения","Пол","Участник с ОВЗ (да/нет)","Класс обучения","Класс участия","Балл","Максимальный балл","Статус","Призёр муниципального этапа прошлого года","ФИО учителя","Место работы учителя"]
[1,{"$f":"'[1]Протокол ШЭ ВОШ по предмету'!B48","v":"Семьянов"},{"$f":"'[1]Протокол ШЭ ВОШ по предмету'!C48","v":"Артем"},{"$f":"'[1]Протокол ШЭ ВОШ по предмету'!D48","v":"Сергеевич"},{"$f":"'[1]Протокол ШЭ ВОШ по предмету'!E48","v":"2011-04-11"},{"$f":"'[1]Протокол ШЭ ВОШ по предмету'!F48","v":"М"},{"$f":"'[1]Протокол ШЭ ВОШ по предмету'!G48","v":"Нет"},5,5,{"$f":"'[1]Протокол ШЭ ВОШ по предмету'!J48","v":"51.0"},{"$f":"'[1]Протокол ШЭ ВОШ по предмету'!K48","v":100},"Призер",{"$f":"'[1]Протокол ШЭ ВОШ по предмету'!M48","v":"Нет"},{"$f":"'[1]Протокол ШЭ ВОШ по предмету'!N48","v":"Евстафьев Сергей Владимирович"},"Муниципальное бюджетное общеобразовательное учреждение «Средняя общеобразовательная русско-татарская школа №87» Московского района г.Казани"]
[2,{"$f":"'[1]Протокол ШЭ ВОШ по предмету'!B49","v":"Данг"},{"$f":"'[1]Протокол ШЭ ВОШ по предмету'!C49","v":"Чан"},{"$f":"'[1]Протокол ШЭ ВОШ по предмету'!D49","v":"Хан Зи"},{"$f":"'[1]Протокол ШЭ ВОШ по предмету'!E49","v":"2011-09-26"},"Ж",{"$f":"'[1]Протокол ШЭ ВОШ по предмету'!G49","v":"Нет"},5,5,{"$f":"'[1]Протокол ШЭ ВОШ по предмету'!J49","v":"65.5"},{"$f":"'[1]Протокол ШЭ ВОШ по предмету'!K49","v":100},"Призер",{"$f":"'[1]Протокол ШЭ ВОШ по предмету'!M49","v":"Нет"},{"$f":"'[1]Протокол ШЭ ВОШ по предмету'!N49","v":"Евстафьев Сергей Владимирович"},"Муниципальное бюджетное общеобразовательное учреждение «Средняя общеобразовательная русско-татарская школа №87» Московского района г.Казани"]
[3,{"$f":"'[1]Протокол ШЭ ВОШ по предмету'!B50","v":"Гайнуллин"},{"$f":"'[1]Протокол ШЭ ВОШ по предмету'!C50","v":"Карим"},{"$f":"'[1]Протокол ШЭ ВОШ по предмету'!D50","v":"Айдарович"},{"$f":"'[1]Протокол ШЭ ВОШ по предмету'!E50","v":"2011-03-27"},{"$f":"'[1]Протокол ШЭ ВОШ по предмету'!F50","v":"М"},{"$f":"'[1]Протокол ШЭ ВОШ по предмету'!G50","v":"Нет"},5,5,{"$f":"'[1]Протокол ШЭ ВОШ по предмету'!J50","v":"52.8"},{"$f":"'[1]Протокол ШЭ ВОШ по предмету'!K50","v":100},"Призер",{"$f":"'[1]Протокол ШЭ ВОШ по предмету'!M50","v":"Нет"},{"$f":"'[1]Протокол ШЭ ВОШ по предмету'!N50","v":"Смук Юрий Юрьевич"},"Муниципальное бюджетное общеобразовательное учреждение «Средняя общеобразовательная русско-татарская школа №87» Московского района г.Казани"]
[4,{"$f":"'[1]Протокол ШЭ ВОШ по предмету'!B51","v":"Кузьмина"},{"$f":"'[1]Протокол ШЭ ВОШ по предмету'!C51","v":"Полина"},{"$f":"'[1]Протокол ШЭ ВОШ по предмету'!D51","v":"Сергеевна"},{"$f":"'[1]Протокол ШЭ ВОШ по предмету'!E51","v":"2011-03-12"},"Ж",{"$f":"'[1]Протокол ШЭ ВОШ по предмету'!G51","v":"Нет"},5,5,{"$f":"'[1]Протокол ШЭ ВОШ по предмету'!J51","v":"50.9"},{"$f":"'[1]Протокол ШЭ ВОШ по предмету'!K51","v":100},"Призер",{"$f":"'[1]Протокол ШЭ ВОШ по предмету'!M51","v":"Нет"},{"$f":"'[1]Протокол ШЭ ВОШ по предмету'!N51","v":"Смук Юрий Юрьевич"},"Муниципальное бюджетное общеобразовательное учреждение «Средняя общеобразовательная русско-татарская школа №87» Московского района г.Казани"]
[5,{"$f":"'[1]Протокол ШЭ ВОШ по предмету'!B52","v":"Романова"},{"$f":"'[1]Протокол ШЭ ВОШ по предмету'!C52","v":"Дарья"},{"$f":"'[1]Протокол ШЭ ВОШ по предмету'!D52","v":"Романова"},{"$f":"'[1]Протокол ШЭ ВОШ по предмету'!E52","v":"2011-07-18"},"Ж",{"$f":"'[1]Протокол ШЭ ВОШ по предмету'!G52","v":"Нет"},5,5,{"$f":"'[1]Протокол ШЭ ВОШ по предмету'!J52","v":"54.1"},{"$f":"'[1]Протокол ШЭ ВОШ по предмету'!K52","v":100},"Призер",{"$f":"'[1]Протокол ШЭ ВОШ по предмету'!M52","v":"Нет"},{"$f":"'[1]Протокол ШЭ ВОШ по предмету'!N52","v":"Смук Юрий Юрьевич"},"Муниципальное бюджетное общеобразовательное учреждение «Средняя общеобразовательная русско-татарская школа №87» Московского района г.Казани"]
[6,{"$f":"'[1]Протокол ШЭ ВОШ по предмету'!B53","v":"Иванов"},{"$f":"'[1]Протокол ШЭ ВОШ по предмету'!C53","v":"Александр"},{"$f":"'[1]Протокол ШЭ ВОШ по предмету'!D53","v":"Дмитриевич"},{"$f":"'[1]Протокол ШЭ ВОШ по предмету'!E53","v":"2010-11-14"},{"$f":"'[1]Протокол ШЭ ВОШ по предмету'!F53","v":"М"},{"$f":"'[1]Протокол ШЭ ВОШ по предмету'!G53","v":"Нет"},5,5,{"$f":"'[1]Протокол ШЭ ВОШ по предмету'!J53","v":"45.9"},{"$f":"'[1]Протокол ШЭ ВОШ по предмету'!K53","v":100},{"$f":"'[1]Протокол ШЭ ВОШ по предмету'!L53","v":"Участник"},{"$f":"'[1]Протокол ШЭ ВОШ по предмету'!M53","v":"Нет"},{"$f":"'[1]Протокол ШЭ ВОШ по предмету'!N53","v":"Смук Юрий Юрьевич"},"Муниципальное бюджетное общеобразовательное учреждение «Средняя общеобразовательная русско-татарская школа №87» Московского района г.Казани"]
[7,{"$f":"'[1]Протокол ШЭ ВОШ по предмету'!B54","v":"Димитриева"},{"$f":"'[1]Протокол ШЭ ВОШ по предмету'!C54","v":"Эмилия"},{"$f":"'[1]Протокол ШЭ ВОШ по предмету'!D54","v":"Эдуардовна"},{"$f":"'[1]Протокол ШЭ ВОШ по предмету'!E54","v":"2011-06-05"},"Ж",{"$f":"'[1]Протокол ШЭ ВОШ по предмету'!G54","v":"Нет"},5,5,{"$f":"'[1]Протокол ШЭ ВОШ по предмету'!J54","v":"46.6"},{"$f":"'[1]Протокол ШЭ ВОШ по предмету'!K54","v":100},{"$f":"'[1]Протокол ШЭ ВОШ по предмету'!L54","v":"Участник"},{"$f":"'[1]Протокол ШЭ ВОШ по предмету'!M54","v":"Нет"},{"$f":"'[1]Протокол ШЭ ВОШ по предмету'!N54","v":"Смук Юрий Юрьевич"},"Муниципальное бюджетное общеобразовательное учреждение «Средняя общеобразовательная русско-татарская школа №87» Московского района г.Казани"]
[8,{"$f":"'[1]Протокол ШЭ ВОШ по предмету'!B38","v":"Исаев"},{"$f":"'[1]Протокол ШЭ ВОШ по предмету'!C38","v":"Владислав"},{"$f":"'[1]Протокол ШЭ ВОШ по предмету'!D38","v":"Витальевич"},{"$f":"'[1]Протокол ШЭ ВОШ по предмету'!E38","v":"2010-10-13"},{"$f":"'[1]Протокол ШЭ ВОШ по предмету'!F38","v":"М"},{"$f":"'[1]Протокол ШЭ ВОШ по предмету'!G38","v":"Нет"},6,6,{"$f":"'[1]Протокол ШЭ ВОШ по предмету'!J38","v":"76.6"},{"$f":"'[1]Протокол ШЭ ВОШ по предмету'!K38","v":100},"Победитель",{"$f":"'[1]Протокол ШЭ ВОШ по предмету'!M38","v":"Нет"},{"$f":"'[1]Протокол ШЭ ВОШ по предмету'!N38","v":"Смук Юрий Юрьевич"},"Муниципальное бюджетное общеобразовательное учреждение «Средняя общеобразовательная русско-татарская школа №87» Московского района г.Казани"]
[9,{"$f":"'[1]Протокол ШЭ ВОШ по предмету'!B39","v":"Саитов"},{"$f":"'[1]Протокол ШЭ ВОШ по предмету'!C39","v":"Раиль"},{"$f":"'[1]Протокол ШЭ ВОШ по предмету'!D39","v":"Альфетрович"},{"$f":"'[1]Протокол ШЭ ВОШ по предмету'!E39","v":"2010-01-28"},{"$f":"'[1]Протокол ШЭ ВОШ по предмету'!F39","v":"М"},{"$f":"'[1]Протокол ШЭ ВОШ по предмету'!G39","v":"Нет"},6,6,{"$f":"'[1]Протокол ШЭ ВОШ по предмету'!J39","v":"71.9"},{"$f":"'[1]Протокол ШЭ ВОШ по предмету'!K39","v":100},"Победитель",{"$f":"'[1]Протокол ШЭ ВОШ по предмету'!M39","v":"Нет"},{"$f":"'[1]Протокол ШЭ ВОШ по предмету'!N39","v":"Смук Юрий Юрьевич"},"Муниципальное бюджетное общеобразовательное учреждение «Средняя общеобразовательная русско-татарская школа №87» Московского района г.Казани"]
[10,{"$f":"'[1]Протокол ШЭ ВОШ по предмету'!B40","v":"Иванченко"},{"$f":"'[1]Протокол ШЭ ВОШ по предмету'!C40","v":"Арина"},{"$f":"'[1]Протокол ШЭ ВОШ по предмету'!D40","v":"Игоревна"},{"$f":"'[1]Протокол ШЭ ВОШ по предмету'!E40","v":"2010-10-14"},"Ж",{"$f":"'[1]Протокол ШЭ ВОШ по предмету'!G40","v":"Нет"},6,6,{"$f":"'[1]Протокол ШЭ ВОШ по предмету'!J40","v":"75.9"},{"$f":"'[1]Протокол ШЭ ВОШ по предмету'!K40","v":100},"Победитель",{"$f":"'[1]Протокол ШЭ ВОШ по предмету'!M40","v":"Нет"},{"$f":"'[1]Протокол ШЭ ВОШ по предмету'!N40","v":"Смук Юрий Юрьевич"},"Муниципальное бюджетное общеобразовательное учреждение «Средняя общеобразовательная русско-татарская школа №87» Московского района г.Казани"]
[11,{"$f":"'[1]Протокол ШЭ ВОШ по предмету'!B41","v":"Иванычева"},{"$f":"'[1]Протокол ШЭ ВОШ по предмету'!C41","v":"Дина"},{"$f":"'[1]Протокол ШЭ ВОШ по предмету'!D41","v":"Михайловна"},{"$f":"'[1]Протокол ШЭ ВОШ по предмету'!E41","v":"2010-01-09"},"Ж",{"$f":"'[1]Протокол ШЭ ВОШ по предмету'!G41","v":"Нет"},6,6,{"$f":"'[1]Протокол ШЭ ВОШ по предмету'!J41","v":"76.1"},{"$f":"'[1]Протокол ШЭ ВОШ по предмету'!K41","v":100},"Победитель",{"$f":"'[1]Протокол ШЭ ВОШ по предмету'!M41","v":"Нет"},{"$f":"'[1]Протокол ШЭ ВОШ по предмету'!N41","v":"Смук Юрий Юрьевич"},"Муниципальное бюджетное общеобразовательное учреждение «Средняя общеобразовательная русско-татарская школа №87» Московского района г.Казани"]
[12,{"$f":"'[1]Протокол ШЭ ВОШ по предмету'!B42","v":"Хакимов"},{"$f":"'[1]Протокол ШЭ ВОШ по предмету'!C42","v":"Вильдан"},{"$f":"'[1]Протокол ШЭ ВОШ по предмету'!D42","v":"Ильсурович"},{"$f":"'[1]Протокол ШЭ ВОШ по предмету'!E42","v":"2010-05-19"},{"$f":"'[1]Протокол ШЭ ВОШ по предмету'!F42","v":"М"},{"$f":"'[1]Протокол ШЭ ВОШ по предмету'!G42","v":"Нет"},6,6,{"$f":"'[1]Протокол ШЭ ВОШ по предмету'!J42","v":"55.9"},{"$f":"'[1]Протокол ШЭ ВОШ по предмету'!K42","v":100},"Призер",{"$f":"'[1]Протокол ШЭ ВОШ по предмету'!M42","v":"Нет"},{"$f":"'[1]Протокол ШЭ ВОШ по предмету'!N42","v":"Смук Юрий Юрьевич"},"Муниципальное бюджетное общеобразовательное учреждение «Средняя общеобразовательная русско-татарская школа №87» Московского района г.Казани"]
[13,{"$f":"'[1]Протокол ШЭ ВОШ по предмету'!B43","v":"Смоленков"},{"$f":"'[1]Протокол ШЭ ВОШ по предмету'!C43","v":"Максим"},{"$f":"'[1]Протокол ШЭ ВОШ по предмету'!D43","v":"Юрьевич"},{"$f":"'[1]Протокол ШЭ ВОШ по предмету'!E43","v":"2009-12-05"},{"$f":"'[1]Протокол ШЭ ВОШ по предмету'!F43","v":"М"},{"$f":"'[1]Протокол ШЭ ВОШ по предмету'!G43","v":"Нет"},6,6,{"$f":"'[1]Протокол ШЭ ВОШ по предмету'!J43","v":"48.6"},{"$f":"'[1]Протокол ШЭ ВОШ по предмету'!K43","v":100},{"$f":"'[1]Протокол ШЭ ВОШ по предмету'!L43","v":"Участник"},{"$f":"'[1]Протокол ШЭ ВОШ по предмету'!M43","v":"Нет"},{"$f":"'[1]Протокол ШЭ ВОШ по предмету'!N43","v":"Смук Юрий Юрьевич"},"Муниципальное бюджетное общеобразовательное учреждение «Средняя общеобразовательная русско-татарская школа №87» Московского района г.Казани"]
[14,{"$f":"'[1]Протокол ШЭ ВОШ по предмету'!B44","v":"Сайфутдинова"},{"$f":"'[1]Протокол ШЭ ВОШ по предмету'!C44","v":"Камиля"},{"$f":"'[1]Протокол ШЭ ВОШ по предмету'!D44","v":"Ильдаровна"},{"$f":"'[1]Протокол ШЭ ВОШ по предмету'!E44","v":"2010-05-31"},"Ж",{"$f":"'[1]Протокол ШЭ ВОШ по предмету'!G44","v":"Нет"},6,6,{"$f":"'[1]Протокол ШЭ ВОШ по предмету'!J44","v":"50.4"},{"$f":"'[1]Протокол ШЭ ВОШ по предмету'!K44","v":100},"Призер",{"$f":"'[1]Протокол ШЭ ВОШ по предмету'!M44","v":"Нет"},{"$f":"'[1]Протокол ШЭ ВОШ по предмету'!N44","v":"Смук Юрий Юрьевич"},"Муниципальное бюджетное общеобразовательное учреждение «Средняя общеобразовательная русско-татарская школа №87» Московского района г.Казани"]
[15,{"$f":"'[1]Протокол ШЭ ВОШ по предмету'!B45","v":"Хамзаев"},{"$f":"'[1]Протокол ШЭ ВОШ по предмету'!C45","v":"Руслан"},{"$f":"'[1]Протокол ШЭ ВОШ по предмету'!D45","v":"Бахтиёр угли"},{"$f":"'[1]Протокол ШЭ ВОШ по предмету'!E45","v":"2010-06-25"},{"$f":"'[1]Протокол ШЭ ВОШ по предмету'!F45","v":"М"},{"$f":"'[1]Протокол ШЭ ВОШ по предмету'!G45","v":"Нет"},6,6,{"$f":"'[1]Протокол ШЭ ВОШ по предмету'!J45","v":"53.3"},{"$f":"'[1]Протокол ШЭ ВОШ по предмету'!K45","v":100},"Призер",{"$f":"'[1]Протокол ШЭ ВОШ по предмету'!M45","v":"Нет"},{"$f":"'[1]Протокол ШЭ ВОШ по предмету'!N45","v":"Евстафьев Сергей Владимирович"},"Муниципальное бюджетное общеобразовательное учреждение «Средняя общеобразовательная русско-татарская школа №87» Московского района г.Казани"]
[16,{"$f":"'[1]Протокол ШЭ ВОШ по предмету'!B46","v":"Кугарчинов"},{"$f":"'[1]Протокол ШЭ ВОШ по предмету'!C46","v":"Михаил"},{"$f":"'[1]Протокол ШЭ ВОШ по предмету'!D46","v":"Николаевич"},{"$f":"'[1]Протокол ШЭ ВОШ по предмету'!E46","v":"2010-08-30"},{"$f":"'[1]Протокол ШЭ ВОШ по предмету'!F46","v":"М"},{"$f":"'[1]Протокол ШЭ ВОШ по предмету'!G46","v":"Нет"},6,6,{"$f":"'[1]Протокол ШЭ ВОШ по предмету'!J46","v":"37.8"},{"$f":"'[1]Протокол ШЭ ВОШ по предмету'!K46","v":100},{"$f":"'[1]Протокол ШЭ ВОШ по предмету'!L46","v":"Участник"},{"$f":"'[1]Протокол ШЭ ВОШ по предмету'!M46","v":"Нет"},{"$f":"'[1]Протокол ШЭ ВОШ по предмету'!N46","v":"Евстафьев Сергей Владимирович"},"Муниципальное бюджетное общеобразовательное учреждение «Средняя общеобразовательная русско-татарская школа №87» Московского района г.Казани"]
[17,{"$f":"'[1]Протокол ШЭ ВОШ по предмету'!B47","v":"Рыжикова"},{"$f":"'[1]Протокол ШЭ ВОШ по предмету'!C47","v":"Виолетта"},{"$f":"'[1]Протокол ШЭ ВОШ по предмету'!D47","v":"Рустемовна"},{"$f":"'[1]Протокол ШЭ ВОШ по предмету'!E47","v":"2009-12-17"},"Ж",{"$f":"'[1]Протокол ШЭ ВОШ по предмету'!G47","v":"Нет"},6,6,{"$f":"'[1]Протокол ШЭ ВОШ по предмету'!J47","v":"42.3"},{"$f":"'[1]Протокол ШЭ ВОШ по предмету'!K47","v":100},{"$f":"'[1]Протокол ШЭ ВОШ по предмету'!L47","v":"Участник"},{"$f":"'[1]Протокол ШЭ ВОШ по предмету'!M47","v":"Нет"},{"$f":"'[1]Протокол ШЭ ВОШ по предмету'!N47","v":"Евстафьев Сергей Владимирович"},"Муниципальное бюджетное общеобразовательное учреждение «Средняя общеобразовательная русско-татарская школа №87» Московского района г.Казани"]
[18,{"$f":"'[1]Протокол ШЭ ВОШ по предмету'!B30","v":"Закиров"},{"$f":"'[1]Протокол ШЭ ВОШ по предмету'!C30","v":"Дамир"},{"$f":"'[1]Протокол ШЭ ВОШ по предмету'!D30","v":"Рстумович"},{"$f":"'[1]Протокол ШЭ ВОШ по предмету'!E30","v":"2009-03-10"},{"$f":"'[1]Протокол ШЭ ВОШ по предмету'!F30","v":"М"},{"$f":"'[1]Протокол ШЭ ВОШ по предмету'!G30","v":"Нет"},7,7,{"$f":"'[1]Протокол ШЭ ВОШ по предмету'!J30","v":"61.9"},{"$f":"'[1]Протокол ШЭ ВОШ по предмету'!K30","v":100},"Призер",{"$f":"'[1]Протокол ШЭ ВОШ по предмету'!M30","v":"Нет"},{"$f":"'[1]Протокол ШЭ ВОШ по предмету'!N30","v":"Чибирева Дарья Александровна"},"Муниципальное бюджетное общеобразовательное учреждение «Средняя общеобразовательная русско-татарская школа №87» Московского района г.Казани"]
[19,{"$f":"'[1]Протокол ШЭ ВОШ по предмету'!B31","v":"Камаева"},{"$f":"'[1]Протокол ШЭ ВОШ по предмету'!C31","v":"Кристина"},{"$f":"'[1]Протокол ШЭ ВОШ по предмету'!D31","v":"Сергеевна"},{"$f":"'[1]Протокол ШЭ ВОШ по предмету'!E31","v":"2009-12-01"},"Ж",{"$f":"'[1]Протокол ШЭ ВОШ по предмету'!G31","v":"Нет"},7,7,{"$f":"'[1]Протокол ШЭ ВОШ по предмету'!J31","v":"51.6"},{"$f":"'[1]Протокол ШЭ ВОШ по предмету'!K31","v":100},"Призер",{"$f":"'[1]Протокол ШЭ ВОШ по предмету'!M31","v":"Нет"},{"$f":"'[1]Протокол ШЭ ВОШ по предмету'!N31","v":"Чибирева Дарья Александровна"},"Муниципальное бюджетное общеобразовательное учреждение «Средняя общеобразовательная русско-татарская школа №87» Московского района г.Казани"]
[20,{"$f":"'[1]Протокол ШЭ ВОШ по предмету'!B32","v":"Калыбеков"},{"$f":"'[1]Протокол ШЭ ВОШ по предмету'!C32","v":"Байэл"},{"$f":"'[1]Протокол ШЭ ВОШ по предмету'!D32","v":"Турдалыевич"},{"$f":"'[1]Протокол ШЭ ВОШ по предмету'!E32","v":"2009-10-16"},{"$f":"'[1]Протокол ШЭ ВОШ по предмету'!F32","v":"М"},{"$f":"'[1]Протокол ШЭ ВОШ по предмету'!G32","v":"Нет"},7,7,{"$f":"'[1]Протокол ШЭ ВОШ по предмету'!J32","v":"54.6"},{"$f":"'[1]Протокол ШЭ ВОШ по предмету'!K32","v":100},"Призер",{"$f":"'[1]Протокол ШЭ ВОШ по предмету'!M32","v":"Нет"},{"$f":"'[1]Протокол ШЭ ВОШ по предмету'!N32","v":"Смук Юрий Юрьевич"},"Муниципальное бюджетное общеобразовательное учреждение «Средняя общеобразовательная русско-татарская школа №87» Московского района г.Казани"]
[21,{"$f":"'[1]Протокол ШЭ ВОШ по предмету'!B33","v":"Хасанова"},{"$f":"'[1]Протокол ШЭ ВОШ по предмету'!C33","v":"Яна"},{"$f":"'[1]Протокол ШЭ ВОШ по предмету'!D33","v":"Маратовна"},{"$f":"'[1]Протокол ШЭ ВОШ по предмету'!E33","v":"2009-07-30"},"Ж",{"$f":"'[1]Протокол ШЭ ВОШ по предмету'!G33","v":"Нет"},7,7,{"$f":"'[1]Протокол ШЭ ВОШ по предмету'!J33","v":"62.7"},{"$f":"'[1]Протокол ШЭ ВОШ по предмету'!K33","v":100},"Призер",{"$f":"'[1]Протокол ШЭ ВОШ по предмету'!M33","v":"Нет"},{"$f":"'[1]Протокол ШЭ ВОШ по предмету'!N33","v":"Смук Юрий Юрьевич"},"Муниципальное бюджетное общеобразовательное учреждение «Средняя общеобразовательная русско-татарская школа №87» Московского района г.Казани"]
[22,{"$f":"'[1]Протокол ШЭ ВОШ по предмету'!B34","v":"Михайлов"},{"$f":"'[1]Протокол ШЭ ВОШ по предмету'!C34","v":"Данил"},{"$f":"'[1]Протокол ШЭ ВОШ по предмету'!D34","v":"Романович"},{"$f":"'[1]Протокол ШЭ ВОШ по предмету'!E34","v":"2009-04-30"},"Ж",{"$f":"'[1]Протокол ШЭ ВОШ по предмету'!G34","v":"Нет"},7,7,{"$f":"'[1]Протокол ШЭ ВОШ по предмету'!J34","v":"41.4"},{"$f":"'[1]Протокол ШЭ ВОШ по предмету'!K34","v":100},{"$f":"'[1]Протокол ШЭ ВОШ по предмету'!L34","v":"Участник"},{"$f":"'[1]Протокол ШЭ ВОШ по предмету'!M34","v":"Нет"},{"$f":"'[1]Протокол ШЭ ВОШ по предмету'!N34","v":"Смук Юрий Юрьевич"},"Муниципальное бюджетное общеобразовательное учреждение «Средняя общеобразовательная русско-татарская школа №87» Московского района г.Казани"]
[23,{"$f":"'[1]Протокол ШЭ ВОШ по предмету'!B35","v":"Хемси"},{"$f":"'[1]Протокол ШЭ ВОШ по предмету'!C35","v":"Абдусалам"},{"$f":"'[1]Протокол ШЭ ВОШ по предмету'!D35","v":"Субхи"},{"$f":"'[1]Протокол ШЭ ВОШ по предмету'!E35","v":"2009-01-01"},{"$f":"'[1]Протокол ШЭ ВОШ по предмету'!F35","v":"М"},{"$f":"'[1]Протокол ШЭ ВОШ по предмету'!G35","v":"Нет"},7,7,{"$f":"'[1]Протокол ШЭ ВОШ по предмету'!J35","v":"34.4"},{"$f":"'[1]Протокол ШЭ ВОШ по предмету'!K35","v":100},{"$f":"'[1]Протокол ШЭ ВОШ по предмету'!L35","v":"Участник"},{"$f":"'[1]Протокол ШЭ ВОШ по предмету'!M35","v":"Нет"},{"$f":"'[1]Протокол ШЭ ВОШ по предмету'!N35","v":"Чибирева Дарья Александровна"},"Муниципальное бюджетное общеобразовательное учреждение «Средняя общеобразовательная русско-татарская школа №87» Московского района г.Казани"]
[24,{"$f":"'[1]Протокол ШЭ ВОШ по предмету'!B36","v":"Закиров"},{"$f":"'[1]Протокол ШЭ ВОШ по предмету'!C36","v":"Муратхан"},{"$f":"'[1]Протокол ШЭ ВОШ по предмету'!D36","v":"Ильнурович"},{"$f":"'[1]Протокол ШЭ ВОШ по предмету'!E36","v":"2008-12-21"},{"$f":"'[1]Протокол ШЭ ВОШ по предмету'!F36","v":"М"},{"$f":"'[1]Протокол ШЭ ВОШ по предмету'!G36","v":"Нет"},7,7,{"$f":"'[1]Протокол ШЭ ВОШ по предмету'!J36","v":"53.4"},{"$f":"'[1]Протокол ШЭ ВОШ по предмету'!K36","v":100},"Призер",{"$f":"'[1]Протокол ШЭ ВОШ по предмету'!M36","v":"Нет"},{"$f":"'[1]Протокол ШЭ ВОШ по предмету'!N36","v":"Чибирева Дарья Александровна"},"Муниципальное бюджетное общеобразовательное учреждение «Средняя общеобразовательная русско-татарская школа №87» Московского района г.Казани"]
[25,{"$f":"'[1]Протокол ШЭ ВОШ по предмету'!B37","v":"Цымлякова"},{"$f":"'[1]Протокол ШЭ ВОШ по предмету'!C37","v":"Анжкелика"},{"$f":"'[1]Протокол ШЭ ВОШ по предмету'!D37","v":"Олеговна"},{"$f":"'[1]Протокол ШЭ ВОШ по предмету'!E37","v":"2009-02-20"},"Ж",{"$f":"'[1]Протокол ШЭ ВОШ по предмету'!G37","v":"Нет"},7,7,{"$f":"'[1]Протокол ШЭ ВОШ по предмету'!J37","v":"52.7"},{"$f":"'[1]Протокол ШЭ ВОШ по предмету'!K37","v":100},"Призер",{"$f":"'[1]Протокол ШЭ ВОШ по предмету'!M37","v":"Нет"},{"$f":"'[1]Протокол ШЭ ВОШ по предмету'!N37","v":"Чибирева Дарья Александровна"},"Муниципальное бюджетное общеобразовательное учреждение «Средняя общеобразовательная русско-татарская школа №87» Московского района г.Казани"]
[26,{"$f":"'[1]Протокол ШЭ ВОШ по предмету'!B25","v":"Яранова"},{"$f":"'[1]Протокол ШЭ ВОШ по предмету'!C25","v":"Виктория"},{"$f":"'[1]Протокол ШЭ ВОШ по предмету'!D25","v":"Владимировна"},{"$f":"'[1]Протокол ШЭ ВОШ по предмету'!E25","v":"2009-07-01"},"Ж",{"$f":"'[1]Протокол ШЭ ВОШ по предмету'!G25","v":"Нет"},7,7,{"$f":"'[1]Протокол ШЭ ВОШ по предмету'!J25","v":"57.5"},{"$f":"'[1]Протокол ШЭ ВОШ по предмету'!K25","v":100},"Призер",{"$f":"'[1]Протокол ШЭ ВОШ по предмету'!M25","v":"Нет"},{"$f":"'[1]Протокол ШЭ ВОШ по предмету'!N25","v":"Смук Юрий Юрьевич"},"Муниципальное бюджетное общеобразовательное учреждение «Средняя общеобразовательная русско-татарская школа №87» Московского района г.Казани"]
[27,{"$f":"'[1]Протокол ШЭ ВОШ по предмету'!B22","v":"Мареев"},{"$f":"'[1]Протокол ШЭ ВОШ по предмету'!C22","v":"Кирилл"},{"$f":"'[1]Протокол ШЭ ВОШ по предмету'!D22","v":"Константинович"},{"$f":"'[1]Протокол ШЭ ВОШ по предмету'!E22","v":"2008-08-27"},{"$f":"'[1]Протокол ШЭ ВОШ по предмету'!F22","v":"М"},{"$f":"'[1]Протокол ШЭ ВОШ по предмету'!G22","v":"Нет"},8,8,{"$f":"'[1]Протокол ШЭ ВОШ по предмету'!J22","v":"55.7"},{"$f":"'[1]Протокол ШЭ ВОШ по предмету'!K22","v":100},"Призер",{"$f":"'[1]Протокол ШЭ ВОШ по предмету'!M22","v":"Нет"},{"$f":"'[1]Протокол ШЭ ВОШ по предмету'!N22","v":"Чибирева Дарья Александровна"},"Муниципальное бюджетное общеобразовательное учреждение «Средняя общеобразовательная русско-татарская школа №87» Московского района г.Казани"]
[28,{"$f":"'[1]Протокол ШЭ ВОШ по предмету'!B23","v":"Беспалов"},{"$f":"'[1]Протокол ШЭ ВОШ по предмету'!C23","v":"Илья"},{"$f":"'[1]Протокол ШЭ ВОШ по предмету'!D23","v":"Петрович"},{"$f":"'[1]Протокол ШЭ ВОШ по предмету'!E23","v":"2008-04-16"},{"$f":"'[1]Протокол ШЭ ВОШ по предмету'!F23","v":"М"},{"$f":"'[1]Протокол ШЭ ВОШ по предмету'!G23","v":"Нет"},8,8,{"$f":"'[1]Протокол ШЭ ВОШ по предмету'!J23","v":"53.2"},{"$f":"'[1]Протокол ШЭ ВОШ по предмету'!K23","v":100},"Призер",{"$f":"'[1]Протокол ШЭ ВОШ по предмету'!M23","v":"Нет"},{"$f":"'[1]Протокол ШЭ ВОШ по предмету'!N23","v":"Чибирева Дарья Александровна"},"Муниципальное бюджетное общеобразовательное учреждение «Средняя общеобразовательная русско-татарская школа №87» Московского района г.Казани"]
[29,{"$f":"'[1]Протокол ШЭ ВОШ по предмету'!B24","v":"Ильина"},{"$f":"'[1]Протокол ШЭ ВОШ по предмету'!C24","v":"Арина"},{"$f":"'[1]Протокол ШЭ ВОШ по предмету'!D24","v":"Дмитриевна"},{"$f":"'[1]Протокол ШЭ ВОШ по предмету'!E24","v":"2008-10-23"},"Ж",{"$f":"'[1]Протокол ШЭ ВОШ по предмету'!G24","v":"Нет"},8,8,{"$f":"'[1]Протокол ШЭ ВОШ по предмету'!J24","v":"49.2"},{"$f":"'[1]Протокол ШЭ ВОШ по предмету'!K24","v":100},{"$f":"'[1]Протокол ШЭ ВОШ по предмету'!L24","v":"Участник"},{"$f":"'[1]Протокол ШЭ ВОШ по предмету'!M24","v":"Нет"},{"$f":"'[1]Протокол ШЭ ВОШ по предмету'!N24","v":"Чибирева Дарья Александровна"},"Муниципальное бюджетное общеобразовательное учреждение «Средняя общеобразовательная русско-татарская школа №87» Московского района г.Казани"]
[30,{"$f":"'[1]Протокол ШЭ ВОШ по предмету'!B26","v":"Юлдашев"},{"$f":"'[1]Протокол ШЭ ВОШ по предмету'!C26","v":"Дамир"},{"$f":"'[1]Протокол ШЭ ВОШ по предмету'!D26","v":"Рустемович"},{"$f":"'[1]Протокол ШЭ ВОШ по предмету'!E26","v":"2008-07-21"},{"$f":"'[1]Протокол ШЭ ВОШ по предмету'!F26","v":"М"},{"$f":"'[1]Протокол ШЭ ВОШ по предмету'!G26","v":"Нет"},8,8,{"$f":"'[1]Протокол ШЭ ВОШ по предмету'!J26","v":"37.0"},{"$f":"'[1]Протокол ШЭ ВОШ по предмету'!K26","v":100},{"$f":"'[1]Протокол ШЭ ВОШ по предмету'!L26","v":"Участник"},{"$f":"'[1]Протокол ШЭ ВОШ по предмету'!M26","v":"Нет"},{"$f":"'[1]Протокол ШЭ ВОШ по предмету'!N26","v":"Чибирева Дарья Александровна"},"Муниципальное бюджетное общеобразовательное учреждение «Средняя общеобразовательная русско-татарская школа №87» Московского района г.Казани"]
[31,{"$f":"'[1]Протокол ШЭ ВОШ по предмету'!B27","v":"Идильбаев"},{"$f":"'[1]Протокол ШЭ ВОШ по предмету'!C27","v":"Арсен"},{"$f":"'[1]Протокол ШЭ ВОШ по предмету'!D27","v":"Алишерович"},{"$f":"'[1]Протокол ШЭ ВОШ по предмету'!E27","v":"2008-04-16"},{"$f":"'[1]Протокол ШЭ ВОШ по предмету'!F27","v":"М"},{"$f":"'[1]Протокол ШЭ ВОШ по предмету'!G27","v":"Нет"},8,8,{"$f":"'[1]Протокол ШЭ ВОШ по предмету'!J27","v":"57.3"},{"$f":"'[1]Протокол ШЭ ВОШ по предмету'!K27","v":100},"Призер",{"$f":"'[1]Протокол ШЭ ВОШ по предмету'!M27","v":"Нет"},{"$f":"'[1]Протокол ШЭ ВОШ по предмету'!N27","v":"Чибирева Дарья Александровна"},"Муниципальное бюджетное общеобразовательное учреждение «Средняя общеобразовательная русско-татарская школа №87» Московского района г.Казани"]
[32,{"$f":"'[1]Протокол ШЭ ВОШ по предмету'!B28","v":"Перегородина"},{"$f":"'[1]Протокол ШЭ ВОШ по предмету'!C28","v":"Милена"},{"$f":"'[1]Протокол ШЭ ВОШ по предмету'!D28","v":"Дмитриевна"},{"$f":"'[1]Протокол ШЭ ВОШ по предмету'!E28","v":"2008-04-18"},"Ж",{"$f":"'[1]Протокол ШЭ ВОШ по предмету'!G28","v":"Нет"},8,8,{"$f":"'[1]Протокол ШЭ ВОШ по предмету'!J28","v":"69.4"},{"$f":"'[1]Протокол ШЭ ВОШ по предмету'!K28","v":100},"Призер",{"$f":"'[1]Протокол ШЭ ВОШ по предмету'!M28","v":"Нет"},{"$f":"'[1]Протокол ШЭ ВОШ по предмету'!N28","v":"Чибирева Дарья Александровна"},"Муниципальное бюджетное общеобразовательное учреждение «Средняя общеобразовательная русско-татарская школа №87» Московского района г.Казани"]
[33,{"$f":"'[1]Протокол ШЭ ВОШ по предмету'!B29","v":"Требиакева"},{"$f":"'[1]Протокол ШЭ ВОШ по предмету'!C29","v":"Анна"},{"$f":"'[1]Протокол ШЭ ВОШ по предмету'!D29","v":"Андреевна"},{"$f":"'[1]Протокол ШЭ ВОШ по предмету'!E29","v":"2008-09-11"},"Ж",{"$f":"'[1]Протокол ШЭ ВОШ по предмету'!G29","v":"Нет"},8,8,{"$f":"'[1]Протокол ШЭ ВОШ по предмету'!J29","v":"41.4"},{"$f":"'[1]Протокол ШЭ ВОШ по предмету'!K29","v":100},{"$f":"'[1]Протокол ШЭ ВОШ по предмету'!L29","v":"Участник"},{"$f":"'[1]Протокол ШЭ ВОШ по предмету'!M29","v":"Нет"},{"$f":"'[1]Протокол ШЭ ВОШ по предмету'!N29","v":"Чибирева Дарья Александровна"},"Муниципальное бюджетное общеобразовательное учреждение «Средняя общеобразовательная русско-татарская школа №87» Московского района г.Казани"]
[34,{"$f":"'[1]Протокол ШЭ ВОШ по предмету'!B13","v":"Кепечов"},{"$f":"'[1]Протокол ШЭ ВОШ по предмету'!C13","v":"Рушан"},{"$f":"'[1]Протокол ШЭ ВОШ по предмету'!D13","v":"Маратович"},{"$f":"'[1]Протокол ШЭ ВОШ по предмету'!E13","v":"2007-08-31"},{"$f":"'[1]Протокол ШЭ ВОШ по предмету'!F13","v":"М"},{"$f":"'[1]Протокол ШЭ ВОШ по предмету'!G13","v":"Нет"},9,9,{"$f":"'[1]Протокол ШЭ ВОШ по предмету'!J13","v":"69.1"},{"$f":"'[1]Протокол ШЭ ВОШ по предмету'!K13","v":100},"Призер",{"$f":"'[1]Протокол ШЭ ВОШ по предмету'!M13","v":"Нет"},{"$f":"'[1]Протокол ШЭ ВОШ по предмету'!N13","v":"Чибирева Дарья Александровна"},"Муниципальное бюджетное общеобразовательное учреждение «Средняя общеобразовательная русско-татарская школа №87» Московского района г.Казани"]
[35,{"$f":"'[1]Протокол ШЭ ВОШ по предмету'!B14","v":"Трофимов"},{"$f":"'[1]Протокол ШЭ ВОШ по предмету'!C14","v":"Эмиль"},{"$f":"'[1]Протокол ШЭ ВОШ по предмету'!D14","v":"Павлович"},{"$f":"'[1]Протокол ШЭ ВОШ по предмету'!E14","v":"2007-05-18"},{"$f":"'[1]Протокол ШЭ ВОШ по предмету'!F14","v":"М"},{"$f":"'[1]Протокол ШЭ ВОШ по предмету'!G14","v":"Нет"},9,9,{"$f":"'[1]Протокол ШЭ ВОШ по предмету'!J14","v":"49.2"},{"$f":"'[1]Протокол ШЭ ВОШ по предмету'!K14","v":100},{"$f":"'[1]Протокол ШЭ ВОШ по предмету'!L14","v":"Участник"},{"$f":"'[1]Протокол ШЭ ВОШ по предмету'!M14","v":"Нет"},{"$f":"'[1]Протокол ШЭ ВОШ по предмету'!N14","v":"Чибирева Дарья Александровна"},"Муниципальное бюджетное общеобразовательное учреждение «Средняя общеобразовательная русско-татарская школа №87» Московского района г.Казани"]
[36,{"$f":"'[1]Протокол ШЭ ВОШ по предмету'!B15","v":"Глушкова"},{"$f":"'[1]Протокол ШЭ ВОШ по предмету'!C15","v":"Милана"},{"$f":"'[1]Протокол ШЭ ВОШ по предмету'!D15","v":"Алексеевна"},{"$f":"'[1]Протокол ШЭ ВОШ по предмету'!E15","v":"2007-05-14"},"Ж",{"$f":"'[1]Протокол ШЭ ВОШ по предмету'!G15","v":"Нет"},9,9,{"$f":"'[1]Протокол ШЭ ВОШ по предмету'!J15","v":"67.7"},{"$f":"'[1]Протокол ШЭ ВОШ по предмету'!K15","v":100},"Призер",{"$f":"'[1]Протокол ШЭ ВОШ по предмету'!M15","v":"Нет"},{"$f":"'[1]Протокол ШЭ ВОШ по предмету'!N15","v":"Чибирева Дарья Александровна"},"Муниципальное бюджетное общеобразовательное учреждение «Средняя общеобразовательная русско-татарская школа №87» Московского района г.Казани"]
[37,{"$f":"'[1]Протокол ШЭ ВОШ по предмету'!B16","v":"Ризаева"},{"$f":"'[1]Протокол ШЭ ВОШ по предмету'!C16","v":"Фатима"},{"$f":"'[1]Протокол ШЭ ВОШ по предмету'!D16","v":"Шамилевна"},{"$f":"'[1]Протокол ШЭ ВОШ по предмету'!E16","v":"2008-03-14"},"Ж",{"$f":"'[1]Протокол ШЭ ВОШ по предмету'!G16","v":"Нет"},9,9,{"$f":"'[1]Протокол ШЭ ВОШ по предмету'!J16","v":"47.0"},{"$f":"'[1]Протокол ШЭ ВОШ по предмету'!K16","v":100},{"$f":"'[1]Протокол ШЭ ВОШ по предмету'!L16","v":"Участник"},{"$f":"'[1]Протокол ШЭ ВОШ по предмету'!M16","v":"Нет"},{"$f":"'[1]Протокол ШЭ ВОШ по предмету'!N16","v":"Чибирева Дарья Александровна"},"Муниципальное бюджетное общеобразовательное учреждение «Средняя общеобразовательная русско-татарская школа №87» Московского района г.Казани"]
[38,{"$f":"'[1]Протокол ШЭ ВОШ по предмету'!B17","v":"Батталов"},{"$f":"'[1]Протокол ШЭ ВОШ по предмету'!C17","v":"Алмаз"},{"$f":"'[1]Протокол ШЭ ВОШ по предмету'!D17","v":"Маратович"},{"$f":"'[1]Протокол ШЭ ВОШ по предмету'!E17","v":"2007-07-12"},{"$f":"'[1]Протокол ШЭ ВОШ по предмету'!F17","v":"М"},{"$f":"'[1]Протокол ШЭ ВОШ по предмету'!G17","v":"Нет"},9,9,{"$f":"'[1]Протокол ШЭ ВОШ по предмету'!J17","v":"67.6"},{"$f":"'[1]Протокол ШЭ ВОШ по предмету'!K17","v":100},"призер",{"$f":"'[1]Протокол ШЭ ВОШ по предмету'!M17","v":"Нет"},{"$f":"'[1]Протокол ШЭ ВОШ по предмету'!N17","v":"Чибирева Дарья Александровна"},"Муниципальное бюджетное общеобразовательное учреждение «Средняя общеобразовательная русско-татарская школа №87» Московского района г.Казани"]
[39,{"$f":"'[1]Протокол ШЭ ВОШ по предмету'!B18","v":"Курилов"},{"$f":"'[1]Протокол ШЭ ВОШ по предмету'!C18","v":"Вадим"},{"$f":"'[1]Протокол ШЭ ВОШ по предмету'!D18","v":"Максимович"},{"$f":"'[1]Протокол ШЭ ВОШ по предмету'!E18","v":"2006-10-12"},{"$f":"'[1]Протокол ШЭ ВОШ по предмету'!F18","v":"М"},{"$f":"'[1]Протокол ШЭ ВОШ по предмету'!G18","v":"Нет"},9,9,{"$f":"'[1]Протокол ШЭ ВОШ по предмету'!J18","v":"46.8"},{"$f":"'[1]Протокол ШЭ ВОШ по предмету'!K18","v":100},{"$f":"'[1]Протокол ШЭ ВОШ по предмету'!L18","v":"Участник"},{"$f":"'[1]Протокол ШЭ ВОШ по предмету'!M18","v":"Нет"},{"$f":"'[1]Протокол ШЭ ВОШ по предмету'!N18","v":"Чибирева Дарья Александровна"},"Муниципальное бюджетное общеобразовательное учреждение «Средняя общеобразовательная русско-татарская школа №87» Московского района г.Казани"]
[40,{"$f":"'[1]Протокол ШЭ ВОШ по предмету'!B19","v":"Бахтиарова"},{"$f":"'[1]Протокол ШЭ ВОШ по предмету'!C19","v":"Алия"},{"$f":"'[1]Протокол ШЭ ВОШ по предмету'!D19","v":"Рустемовна"},{"$f":"'[1]Протокол ШЭ ВОШ по предмету'!E19","v":"2007-07-03"},"Ж",{"$f":"'[1]Протокол ШЭ ВОШ по предмету'!G19","v":"Нет"},9,9,{"$f":"'[1]Протокол ШЭ ВОШ по предмету'!J19","v":"58.8"},{"$f":"'[1]Протокол ШЭ ВОШ по предмету'!K19","v":100},"Призер",{"$f":"'[1]Протокол ШЭ ВОШ по предмету'!M19","v":"Нет"},{"$f":"'[1]Протокол ШЭ ВОШ по предмету'!N19","v":"Чибирева Дарья Александровна"},"Муниципальное бюджетное общеобразовательное учреждение «Средняя общеобразовательная русско-татарская школа №87» Московского района г.Казани"]
[41,{"$f":"'[1]Протокол ШЭ ВОШ по предмету'!B20","v":"Сафина"},{"$f":"'[1]Протокол ШЭ ВОШ по предмету'!C20","v":"Рузиля"},{"$f":"'[1]Протокол ШЭ ВОШ по предмету'!D20","v":"Маратовна"},{"$f":"'[1]Протокол ШЭ ВОШ по предмету'!E20","v":"2007-03-07"},"Ж",{"$f":"'[1]Протокол ШЭ ВОШ по предмету'!G20","v":"Нет"},9,9,{"$f":"'[1]Протокол ШЭ ВОШ по предмету'!J20","v":"61.3"},{"$f":"'[1]Протокол ШЭ ВОШ по предмету'!K20","v":100},"Призер",{"$f":"'[1]Протокол ШЭ ВОШ по предмету'!M20","v":"Нет"},{"$f":"'[1]Протокол ШЭ ВОШ по предмету'!N20","v":"Чибирева Дарья Александровна"},"Муниципальное бюджетное общеобразовательное учреждение «Средняя общеобразовательная русско-татарская школа №87» Московского района г.Казани"]
[42,{"$f":"'[1]Протокол ШЭ ВОШ по предмету'!B21","v":"Иванычева"},{"$f":"'[1]Протокол ШЭ ВОШ по предмету'!C21","v":"Милана"},{"$f":"'[1]Протокол ШЭ ВОШ по предмету'!D21","v":"Михайловна"},{"$f":"'[1]Протокол ШЭ ВОШ по предмету'!E21","v":"2006-10-22"},"Ж",{"$f":"'[1]Протокол ШЭ ВОШ по предмету'!G21","v":"Нет"},9,9,{"$f":"'[1]Протокол ШЭ ВОШ по предмету'!J21","v":"72.0"},{"$f":"'[1]Протокол ШЭ ВОШ по предмету'!K21","v":100},"Призер",{"$f":"'[1]Протокол ШЭ ВОШ по предмету'!M21","v":"Нет"},{"$f":"'[1]Протокол ШЭ ВОШ по предмету'!N21","v":"Чибирева Дарья Александровна"},"Муниципальное бюджетное общеобразовательное учреждение «Средняя общеобразовательная русско-татарская школа №87» Московского района г.Казани"]
[43,{"$f":"'[1]Протокол ШЭ ВОШ по предмету'!B55","v":"Нагин"},{"$f":"'[1]Протокол ШЭ ВОШ по предмету'!C55","v":"Дмитрий"},{"$f":"'[1]Протокол ШЭ ВОШ по предмету'!D55","v":"Дмитриевич"},{"$f":"'[1]Протокол ШЭ ВОШ по предмету'!E55","v":"2007-07-31"},{"$f":"'[1]Протокол ШЭ ВОШ по предмету'!F55","v":"М"},{"$f":"'[1]Протокол ШЭ ВОШ по предмету'!G55","v":"Нет"},9,9,{"$f":"'[1]Протокол ШЭ ВОШ по предмету'!J55","v":"66.7"},{"$f":"'[1]Протокол ШЭ ВОШ по предмету'!K55","v":100},"Призер",{"$f":"'[1]Протокол ШЭ ВОШ по предмету'!M55","v":"Нет"},{"$f":"'[1]Протокол ШЭ ВОШ по предмету'!N55","v":"Чибирева Дарья Александровна"},"Муниципальное бюджетное общеобразовательное учреждение «Средняя общеобразовательная русско-татарская школа №87» Московского района г.Казани"]
[44,{"$f":"'[1]Протокол ШЭ ВОШ по предмету'!B9","v":"Побежимов"},{"$f":"'[1]Протокол ШЭ ВОШ по предмету'!C9","v":"Даниил"},{"$f":"'[1]Протокол ШЭ ВОШ по предмету'!D9","v":"Викторович"},{"$f":"'[1]Протокол ШЭ ВОШ по предмету'!E9","v":"2006-06-29"},{"$f":"'[1]Протокол ШЭ ВОШ по предмету'!F9","v":"М"},{"$f":"'[1]Протокол ШЭ ВОШ по предмету'!G9","v":"Нет"},10,10,{"$f":"'[1]Протокол ШЭ ВОШ по предмету'!J9","v":"48.8"},{"$f":"'[1]Протокол ШЭ ВОШ по предмету'!K9","v":100},{"$f":"'[1]Протокол ШЭ ВОШ по предмету'!L9","v":"Участник"},{"$f":"'[1]Протокол ШЭ ВОШ по предмету'!M9","v":"Нет"},{"$f":"'[1]Протокол ШЭ ВОШ по предмету'!N9","v":"Чибирева Дарья Александровна"},"Муниципальное бюджетное общеобразовательное учреждение «Средняя общеобразовательная русско-татарская школа №87» Московского района г.Казани"]
[45,{"$f":"'[1]Протокол ШЭ ВОШ по предмету'!B10","v":"Хакимов"},{"$f":"'[1]Протокол ШЭ ВОШ по предмету'!C10","v":"Ильдан"},{"$f":"'[1]Протокол ШЭ ВОШ по предмету'!D10","v":"Ильсурович"},{"$f":"'[1]Протокол ШЭ ВОШ по предмету'!E10","v":"2006-06-12"},{"$f":"'[1]Протокол ШЭ ВОШ по предмету'!F10","v":"М"},{"$f":"'[1]Протокол ШЭ ВОШ по предмету'!G10","v":"Нет"},10,10,{"$f":"'[1]Протокол ШЭ ВОШ по предмету'!J10","v":"50.8"},{"$f":"'[1]Протокол ШЭ ВОШ по предмету'!K10","v":100},"Призер",{"$f":"'[1]Протокол ШЭ ВОШ по предмету'!M10","v":"Нет"},{"$f":"'[1]Протокол ШЭ ВОШ по предмету'!N10","v":"Смук Юрий Юрьевич"},"Муниципальное бюджетное общеобразовательное учреждение «Средняя общеобразовательная русско-татарская школа №87» Московского района г.Казани"]
[46,{"$f":"'[1]Протокол ШЭ ВОШ по предмету'!B11","v":"Расулова"},{"$f":"'[1]Протокол ШЭ ВОШ по предмету'!C11","v":"Ферузахон"},{"$f":"'[1]Протокол ШЭ ВОШ по предмету'!D11","v":"Диммадбек кызы"},{"$f":"'[1]Протокол ШЭ ВОШ по предмету'!E11","v":"2006-12-18"},"Ж",{"$f":"'[1]Протокол ШЭ ВОШ по предмету'!G11","v":"Нет"},10,10,{"$f":"'[1]Протокол ШЭ ВОШ по предмету'!J11","v":"48.5"},{"$f":"'[1]Протокол ШЭ ВОШ по предмету'!K11","v":100},{"$f":"'[1]Протокол ШЭ ВОШ по предмету'!L11","v":"Участник"},{"$f":"'[1]Протокол ШЭ ВОШ по предмету'!M11","v":"Нет"},{"$f":"'[1]Протокол ШЭ ВОШ по предмету'!N11","v":"Смук Юрий Юрьевич"},"Муниципальное бюджетное общеобразовательное учреждение «Средняя общеобразовательная русско-татарская школа №87» Московского района г.Казани"]
[47,{"$f":"'[1]Протокол ШЭ ВОШ по предмету'!B12","v":"Ахунова"},{"$f":"'[1]Протокол ШЭ ВОШ по предмету'!C12","v":"Анна"},{"$f":"'[1]Протокол ШЭ ВОШ по предмету'!D12","v":"Шамилевна"},{"$f":"'[1]Протокол ШЭ ВОШ по предмету'!E12","v":"2006-06-25"},"Ж",{"$f":"'[1]Протокол ШЭ ВОШ по предмету'!G12","v":"Нет"},10,10,{"$f":"'[1]Протокол ШЭ ВОШ по предмету'!J12","v":"63.6"},{"$f":"'[1]Протокол ШЭ ВОШ по предмету'!K12","v":100},"Призер",{"$f":"'[1]Протокол ШЭ ВОШ по предмету'!M12","v":"Нет"},{"$f":"'[1]Протокол ШЭ ВОШ по предмету'!N12","v":"Смук Юрий Юрьевич"},"Муниципальное бюджетное общеобразовательное учреждение «Средняя общеобразовательная русско-татарская школа №87» Московского района г.Казани"]
[48,{"$f":"'[1]Протокол ШЭ ВОШ по предмету'!B3","v":"Ахметханов"},{"$f":"'[1]Протокол ШЭ ВОШ по предмету'!C3","v":"Адель"},{"$f":"'[1]Протокол ШЭ ВОШ по предмету'!D3","v":"Рустемович"},{"$f":"'[1]Протокол ШЭ ВОШ по предмету'!E3","v":"2005-01-09"},{"$f":"'[1]Протокол ШЭ ВОШ по предмету'!F3","v":"М"},{"$f":"'[1]Протокол ШЭ ВОШ по предмету'!G3","v":"Нет"},11,11,{"$f":"'[1]Протокол ШЭ ВОШ по предмету'!J3","v":"76.7"},{"$f":"'[1]Протокол ШЭ ВОШ по предмету'!K3","v":100},"Победитель",{"$f":"'[1]Протокол ШЭ ВОШ по предмету'!M3","v":"Нет"},{"$f":"'[1]Протокол ШЭ ВОШ по предмету'!N3","v":"Чибирева Дарья Александровна"},"Муниципальное бюджетное общеобразовательное учреждение «Средняя общеобразовательная русско-татарская школа №87» Московского района г.Казани"]
[49,{"$f":"'[1]Протокол ШЭ ВОШ по предмету'!B4","v":"Родионов"},{"$f":"'[1]Протокол ШЭ ВОШ по предмету'!C4","v":"Данил"},{"$f":"'[1]Протокол ШЭ ВОШ по предмету'!D4","v":"Вадимович"},{"$f":"'[1]Протокол ШЭ ВОШ по предмету'!E4","v":"2005-11-23"},{"$f":"'[1]Протокол ШЭ ВОШ по предмету'!F4","v":"М"},{"$f":"'[1]Протокол ШЭ ВОШ по предмету'!G4","v":"Нет"},11,11,{"$f":"'[1]Протокол ШЭ ВОШ по предмету'!J4","v":"44.5"},{"$f":"'[1]Протокол ШЭ ВОШ по предмету'!K4","v":100},{"$f":"'[1]Протокол ШЭ ВОШ по предмету'!L4","v":"Участник"},{"$f":"'[1]Протокол ШЭ ВОШ по предмету'!M4","v":"нет"},{"$f":"'[1]Протокол ШЭ ВОШ по предмету'!N4","v":"Чибирева Дарья Александровна"},"Муниципальное бюджетное общеобразовательное учреждение «Средняя общеобразовательная русско-татарская школа №87» Московского района г.Казани"]
[50,{"$f":"'[1]Протокол ШЭ ВОШ по предмету'!B5","v":"Боровков"},{"$f":"'[1]Протокол ШЭ ВОШ по предмету'!C5","v":"Даниил"},{"$f":"'[1]Протокол ШЭ ВОШ по предмету'!D5","v":"Алексеевич"},{"$f":"'[1]Протокол ШЭ ВОШ по предмету'!E5","v":"2005-07-10"},{"$f":"'[1]Протокол ШЭ ВОШ по предмету'!F5","v":"М"},{"$f":"'[1]Протокол ШЭ ВОШ по предмету'!G5","v":"Нет"},11,11,{"$f":"'[1]Протокол ШЭ ВОШ по предмету'!J5","v":"84.0"},{"$f":"'[1]Протокол ШЭ ВОШ по предмету'!K5","v":100},"Победитель",{"$f":"'[1]Протокол ШЭ ВОШ по предмету'!M5","v":"Нет"},{"$f":"'[1]Протокол ШЭ ВОШ по предмету'!N5","v":"Чибирева Дарья Александровна"},"Муниципальное бюджетное общеобразовательное учреждение «Средняя общеобразовательная русско-татарская школа №87» Московского района г.Казани"]
[51,{"$f":"'[1]Протокол ШЭ ВОШ по предмету'!B6","v":"Лутфуллина"},{"$f":"'[1]Протокол ШЭ ВОШ по предмету'!C6","v":"Камилла"},{"$f":"'[1]Протокол ШЭ ВОШ по предмету'!D6","v":"Ильдаровна"},{"$f":"'[1]Протокол ШЭ ВОШ по предмету'!E6","v":"2005-09-11"},"Ж",{"$f":"'[1]Протокол ШЭ ВОШ по предмету'!G6","v":"Нет"},11,11,{"$f":"'[1]Протокол ШЭ ВОШ по предмету'!J6","v":"78.7"},{"$f":"'[1]Протокол ШЭ ВОШ по предмету'!K6","v":100},"Победитель",{"$f":"'[1]Протокол ШЭ ВОШ по предмету'!M6","v":"Нет"},{"$f":"'[1]Протокол ШЭ ВОШ по предмету'!N6","v":"Смук Юрий Юрьевич"},"Муниципальное бюджетное общеобразовательное учреждение «Средняя общеобразовательная русско-татарская школа №87» Московского района г.Казани"]
[52,{"$f":"'[1]Протокол ШЭ ВОШ по предмету'!B7","v":"Смук"},{"$f":"'[1]Протокол ШЭ ВОШ по предмету'!C7","v":"Юлия"},{"$f":"'[1]Протокол ШЭ ВОШ по предмету'!D7","v":"Юрьевна"},{"$f":"'[1]Протокол ШЭ ВОШ по предмету'!E7","v":"2004-09-27"},"Ж",{"$f":"'[1]Протокол ШЭ ВОШ по предмету'!G7","v":"Нет"},11,11,{"$f":"'[1]Протокол ШЭ ВОШ по предмету'!J7","v":"94.3"},{"$f":"'[1]Протокол ШЭ ВОШ по предмету'!K7","v":100},"Победитель",{"$f":"'[1]Протокол ШЭ ВОШ по предмету'!M7","v":"Нет"},{"$f":"'[1]Протокол ШЭ ВОШ по предмету'!N7","v":"Смук Юрий Юрьевич"},"Муниципальное бюджетное общеобразовательное учреждение «Средняя общеобразовательная русско-татарская школа №87» Московского района г.Казани"]
[53,{"$f":"'[1]Протокол ШЭ ВОШ по предмету'!B8","v":"Чигасова"},{"$f":"'[1]Протокол ШЭ ВОШ по предмету'!C8","v":"Лидия"},{"$f":"'[1]Протокол ШЭ ВОШ по предмету'!D8","v":"Александрова"},{"$f":"'[1]Протокол ШЭ ВОШ по предмету'!E8","v":"2004-11-20"},"Ж",{"$f":"'[1]Протокол ШЭ ВОШ по предмету'!G8","v":"Нет"},11,11,{"$f":"'[1]Протокол ШЭ ВОШ по предмету'!J8","v":"66.7"},{"$f":"'[1]Протокол ШЭ ВОШ по предмету'!K8","v":100},"Призер",{"$f":"'[1]Протокол ШЭ ВОШ по предмету'!M8","v":"Нет"},{"$f":"'[1]Протокол ШЭ ВОШ по предмету'!N8","v":"Смук Юрий Юрьевич"},"Муниципальное бюджетное общеобразовательное учреждение «Средняя общеобразовательная русско-татарская школа №87» Московского района г.Казани"]